bitfinex/quotes_ETHUSD_20250411
["timestamp","ask_amount","ask_price","bid_price","bid_amount"]
[1744357007426,1e-05,1552.4,1552.3,18.45585114]
[1744357007611,1e-05,1552.4,1552.3,19.73134703]
[1744357007814,0.7664,1552.9,1552.7,6.44039]
[1744357008012,0.7664,1552.9,1552.8,10.67028175]
[1744357009823,0.7664,1552.9,1552.8,6.81693118]
[1744357010389,0.7664,1552.9,1552.8,10.67028175]
[1744357010590,0.7504,1553.1,1552.9,6.43956]
[1744357010790,0.7504,1553.1,1552.9,11.14496926]
[1744357011731,0.7504,1553.1,1553.0,6.43915]
[1744357012133,0.7504,1553.1,1553.0,6.81740062]
[1744357012635,0.7504,1553.1,1553.0,12.42929913]
[1744357013433,6.365,1553.2,1553.1,6.43873]
[1744357013434,0.7765,1553.2,1553.1,6.43873]
[1744357013602,0.7765,1553.2,1553.1,10.66948265]
[1744357013803,0.05,1553.4,1553.3,6.4379]
[1744357014037,0.05,1553.4,1553.3,6.81291569]
[1744357014338,0.815,1553.4,1553.3,7.29455332]
[1744357014701,0.815,1553.4,1553.3,11.14790389]
[1744357014906,0.05,1553.4,1553.3,11.8451904]
[1744357015305,0.05,1553.4,1553.3,11.14790389]
[1744357015505,0.8283,1553.4,1553.3,0.85665332]
[1744357015840,0.8283,1553.4,1553.3,6.81291569]
[1744357016506,0.8283,1553.4,1553.3,0.37501569]
[1744357016711,0.8283,1553.4,1553.3,0.85343199]
[1744357016918,0.8283,1553.4,1553.3,6.81291569]
[1744357018115,0.05,1553.4,1553.3,12.37670489]
[1744357019219,0.05,1553.4,1553.3,16.75410489]
[1744357019615,0.05,1553.4,1553.3,17.2266321]
[1744357022953,0.3891701,1553.6,1553.5,6.43707]
[1744357023152,0.3891701,1553.6,1553.5,10.29042057]
[1744357023338,0.3891701,1553.6,1553.5,11.9566421]
[1744357023667,0.3891701,1553.6,1553.5,12.7808421]
[1744357024217,1e-07,1553.6,1553.5,19.63419267]
[1744357024420,1e-07,1553.6,1553.5,19.08419267]
[1744357025045,1e-07,1553.6,1553.5,18.25999267]
[1744357026716,1e-07,1553.6,1553.5,14.4066421]
[1744357027782,1e-07,1553.6,1553.5,9.80789571]
[1744357027978,0.7935001,1553.6,1553.5,6.80789571]
[1744357028983,0.7935001,1553.6,1553.5,10.66124628]
[1744357031793,1e-07,1553.6,1553.5,14.45294628]
[1744357031948,1e-07,1553.6,1553.5,13.66124628]
[1744357033588,1e-07,1553.6,1553.5,18.82349685]
[1744357033795,1e-07,1553.6,1553.5,14.97014628]
[1744357034300,1e-07,1553.6,1553.5,13.66124628]
[1744357034995,1e-07,1553.6,1553.5,18.06459685]
[1744357035158,1e-07,1553.6,1553.5,18.83249685]
[1744357040905,1e-07,1553.6,1553.5,14.21124628]
[1744357041060,1e-07,1553.6,1553.5,18.06459685]
[1744357041262,1e-07,1553.6,1553.5,18.82219685]
[1744357041677,1e-07,1553.6,1553.5,18.06459685]
[1744357041859,1e-07,1553.6,1553.5,13.66124628]
[1744357043470,0.7874001,1553.6,1553.5,6.80789571]
[1744357043699,0.7874001,1553.6,1553.5,9.80789571]
[1744357046909,1e-07,1553.6,1553.5,13.66124628]
[1744357047113,1e-07,1553.6,1553.5,14.98524628]
[1744357048066,0.00233281,1554.0,1553.9,6.43542]
[1744357048266,0.00233281,1554.0,1553.9,10.52179886]
[1744357048470,0.77043281,1554.0,1553.9,14.37514943]
[1744357049716,0.77043281,1554.0,1553.9,13.64989743]
[1744357050017,0.77043281,1554.0,1553.9,14.12950481]
[1744357050218,0.77043281,1554.0,1553.9,11.12950481]
[1744357052424,0.00233281,1554.0,1553.9,11.12950481]
[1744357055323,0.00233281,1554.0,1553.9,11.67950481]
[1744357056096,0.00233281,1554.0,1553.9,14.67950481]
[1744357057123,2.81e-06,1554.0,1553.9,19.29045538]
[1744357057429,0.05,1554.4,1554.3,9.43376]
[1744357057726,0.05,1554.4,1554.3,13.64724604]
[1744357057896,0.05,1554.4,1554.3,14.19724604]
[1744357058091,0.05,1554.4,1554.3,14.68030146]
[1744357058309,0.05,1554.4,1554.3,15.45400146]
[1744357059627,0.05,1554.4,1554.3,15.7776976]
[1744357059825,0.05,1554.4,1554.3,15.0039976]
[1744357060330,0.05,1554.4,1554.3,14.13030146]
[1744357060538,7.2082,1554.4,1554.3,0.36013547]
[1744357061213,7.2082,1554.4,1554.3,6.79389547]
[1744357063138,6.402,1554.4,1554.3,6.79389547]
[1744357063334,0.05,1554.4,1554.3,10.64724604]
[1744357064405,0.05,1554.4,1554.3,12.35536464]
[1744357066047,0.05,1554.4,1554.3,13.39444368]
[1744357066338,0.05,1554.4,1554.3,14.2886001]
[1744357067235,0.05,1554.4,1554.3,17.2886001]
[1744357067745,1e-05,1554.4,1554.3,17.2886001]
[1744357068250,1e-05,1554.4,1554.3,16.39444368]
[1744357070641,1e-05,1554.4,1554.3,17.16364368]
[1744357071449,1e-05,1554.4,1554.3,21.91115067]
[1744357072150,1e-05,1554.4,1554.3,18.0578001]
[1744357076154,1e-05,1554.4,1554.3,17.16364368]
[1744357077136,1e-05,1554.4,1554.3,21.01699425]
[1744357077333,1e-05,1554.4,1554.3,17.16364368]
[1744357078147,1e-05,1554.4,1554.3,21.91115067]
[1744357079257,1e-05,1554.4,1554.3,18.5578001]
[1744357079618,1e-05,1554.4,1554.3,17.66364368]
[1744357080464,0.8315,1554.9,1554.8,6.43169]
[1744357080641,0.8315,1554.9,1554.8,13.28504057]
[1744357080819,0.8315,1554.9,1554.8,13.64175311]
[1744357081937,0.8315,1554.9,1554.8,14.38946896]
[1744357082339,0.3891701,1555.2,1555.1,6.43045]
[1744357082862,1.1780701,1555.2,1555.1,6.78508188]
[1744357083987,1.1780701,1555.2,1555.1,7.27764251]
[1744357084159,1.1780701,1555.2,1555.1,6.78508188]
[1744357084576,1.1780701,1555.2,1555.1,10.63843245]
[1744357084777,1.1780701,1555.2,1555.1,12.3453427]
[1744357084977,1.1780701,1555.2,1555.1,10.63843245]
[1744357085376,0.3891701,1555.2,1555.1,6.78508188]
[1744357085775,0.3891701,1555.2,1555.1,10.63843245]
[1744357086089,0.3891701,1555.2,1555.1,13.63843245]
[1744357086256,0.3891701,1555.2,1555.1,14.18843245]
[1744357086587,0.3891701,1555.2,1555.1,13.63843245]
[1744357087262,0.3891701,1555.2,1555.1,14.11232268]
[1744357088097,0.7636,1555.6,1555.3,9.42962]
[1744357088281,4.76168387,1555.9,1555.8,6.42756]
[1744357088658,11.18890387,1555.9,1555.5,6.42855]
[1744357088999,7.1106,1555.8,1555.6,6.42814]
[1744357089212,0.7636,1555.8,1555.6,6.77932799]
[1744357089799,0.7636,1555.8,1555.6,6.77940799]
[1744357090001,6.347,1555.8,1555.6,6.77940799]
[1744357090172,0.7748,1555.7,1555.6,6.77940799]
[1744357090671,0.7748,1555.7,1555.6,7.26694124]
[1744357092399,0.7748,1555.7,1555.6,0.83872124]
[1744357092966,0.7748,1555.7,1555.6,6.77956799]
[1744357093167,7.20277,1555.7,1555.6,0.35118799]
[1744357093367,7.931647,1555.7,1555.6,0.35118799]
[1744357093666,0.7834,1555.6,1555.3,12.85918]
[1744357093866,0.7883,1555.5,1555.3,6.42961]
[1744357094876,0.7883,1555.5,1555.3,6.42948]
[1744357095082,0.7883,1555.5,1555.4,6.42921]
[1744357095609,0.7883,1555.5,1555.4,10.28256057]
[1744357097512,0.7883,1555.5,1555.4,6.42921]
[1744357098170,0.7883,1555.5,1555.3,6.89985672]
[1744357098569,0.7883,1555.5,1555.3,6.89999672]
[1744357098821,1.50173,1555.5,1555.0,6.43071]
[1744357099001,0.7634,1555.3,1555.0,12.86141]
[1744357099807,0.7634,1555.3,1555.1,6.43039]
[1744357101112,0.7634,1555.3,1555.1,6.43029]
[1744357101476,0.7634,1555.3,1555.0,6.91130104]
[1744357101477,6.4298,1555.3,1555.0,6.91130104]
[1744357101677,0.7574,1555.2,1555.0,6.91130104]
[1744357101900,0.7574,1555.2,1554.9,10.28459057]
[1744357101901,6.345,1555.1,1554.9,6.43124]
[1744357102127,0.8245,1555.0,1554.8,6.43154]
[1744357102328,0.8245,1555.0,1554.8,12.86302]
[1744357102512,0.8245,1555.0,1554.9,6.43128]
[1744357102817,0.8245,1555.0,1554.9,6.70103353]
[1744357103013,6.345,1555.1,1555.0,6.43086]
[1744357103398,6.345,1555.1,1555.0,6.70013395]
[1744357104105,7.1412,1555.1,1555.0,0.26927395]
[1744357104542,7.1412,1555.1,1555.0,6.70013395]
[1744357104837,7.1412,1555.1,1555.0,0.26927395]
[1744357105034,7.1412,1555.1,1555.0,6.70013395]
[1744357105239,6.345,1555.1,1555.0,10.55348452]
[1744357106111,6.345,1555.1,1555.0,12.25194197]
[1744357106315,6.345,1555.1,1555.0,10.55348452]
[1744357107808,7.0996,1555.1,1555.0,10.55348452]
[1744357110443,6.345,1555.1,1555.0,10.55348452]
[1744357110759,0.7513,1555.4,1555.0,4.91552452]
[1744357110904,0.7513,1555.4,1555.3,6.42962]
[1744357111105,7.0963,1555.4,1555.3,6.69818009]
[1744357112507,0.7513,1555.4,1555.3,6.69818009]
[1744357113744,0.7513,1555.4,1555.3,0.26856009]
[1744357113918,1.469317,1555.4,1555.3,0.26856009]
[1744357116452,1.469317,1555.4,1555.3,6.69818009]
[1744357116754,0.7513,1555.4,1555.3,6.69818009]
[1744357117363,0.7513,1555.4,1555.3,0.26856009]
[1744357118166,0.7513,1555.4,1555.3,6.69818009]
[1744357118851,0.7513,1555.4,1555.3,0.26856009]
[1744357119232,0.7513,1555.4,1555.1,12.86068]
[1744357119233,0.7727,1555.3,1555.1,6.43033]
[1744357119725,6.345,1555.2,1554.9,15.0558786]
[1744357119925,0.8194,1555.1,1554.9,21.4869886]
[1744357120126,0.8194,1555.1,1554.9,16.71561057]
[1744357120327,0.8194,1555.1,1555.0,6.43086]
[1744357122859,0.8194,1555.1,1554.8,4.77137803]
[1744357122860,0.8196,1555.0,1554.8,4.77137803]
[1744357123060,0.8196,1555.0,1554.8,11.20286803]
[1744357123374,7.1646,1555.0,1554.9,6.43128]
[1744357123671,6.345,1555.0,1554.9,6.43128]
[1744357124776,0.8196,1555.1,1555.0,6.43086]
[1744357124988,6.345,1555.1,1555.0,10.28421057]
[1744357125151,6.345,1555.1,1555.0,11.95575963]
[1744357125344,6.345,1555.4,1555.3,6.42949]
[1744357125848,6.345,1555.4,1555.3,6.70026321]
[1744357126540,6.345,1555.4,1555.3,0.27077321]
[1744357126745,6.345,1555.4,1555.1,12.8606]
[1744357127085,0.8268,1555.3,1555.2,0.27070224]
[1744357127282,2.783391,1555.4,1555.2,0.27070224]
[1744357127490,6.345,1555.3,1555.2,16.71294057]
[1744357127844,7.1193,1555.3,1555.1,6.43042]
[1744357128358,13.54899,1555.3,1555.0,6.43079]
[1744357129741,0.8326,1555.1,1554.9,10.28454057]
[1744357130488,7.1776,1555.1,1554.9,10.28454057]
[1744357130888,7.1776,1555.1,1554.9,16.71565057]
[1744357131086,7.1776,1555.1,1554.9,10.28446057]
[1744357131387,7.1776,1555.1,1554.9,6.43111]
[1744357131774,8.538364,1555.1,1554.8,17.63449803]
[1744357132778,14.969004,1555.1,1554.9,0.27204911]
[1744357133179,21.399664,1555.1,1554.9,0.27204911]
[1744357133491,14.969004,1555.1,1554.9,0.27204911]
[1744357134889,20.567064,1555.1,1554.9,0.27204911]
[1744357135066,2.8072064,1555.0,1554.9,0.27204911]
[1744357135990,2.8072064,1555.0,1554.9,0.27484864]
[1744357136196,2.8072064,1555.0,1554.7,16.71722057]
[1744357136378,2.8072064,1555.0,1554.9,0.27484864]
[1744357136577,9.2380664,1555.0,1554.8,0.27532848]
[1744357136783,9.2380664,1555.0,1554.9,0.2714527]
[1744357137100,2.8072064,1555.0,1554.9,0.2714527]
[1744357137293,2.8072064,1555.0,1554.7,16.71722057]
[1744357137499,2.8072064,1555.0,1554.9,0.2714527]
[1744357137697,2.8072064,1555.0,1554.8,0.27193232]
[1744357137899,2.8072064,1555.0,1554.9,0.2714527]
[1744357138395,0.7505,1555.0,1554.9,0.2714527]
[1744357138563,0.7505,1555.0,1554.9,6.43128]
[1744357138918,7.1248,1555.2,1554.9,6.7026027]
[1744357139499,7.21835,1555.1,1554.9,0.2714527]
[1744357140717,0.7879,1555.1,1554.9,0.2714527]
[1744357141317,2.787723,1555.1,1554.9,0.2714527]
[1744357142520,9.218383,1555.1,1554.9,0.2714527]
[1744357142815,9.218383,1555.1,1554.7,6.43198]
[1744357143118,9.218383,1555.1,1555.0,0.2712143]
[1744357143282,9.218383,1555.1,1554.7,6.43198]
[1744357143612,15.649023,1555.1,1554.8,6.43163]
[1744357143818,15.649023,1555.1,1554.8,6.70380348]
[1744357143979,9.218363,1555.1,1554.8,6.70380348]
[1744357145405,15.649023,1555.1,1554.8,6.70380348]
[1744357145589,9.218363,1555.1,1554.8,6.70380348]
[1744357145802,6.4309,1555.0,1554.8,0.27217348]
[1744357146872,0.7887,1554.9,1554.8,0.27217348]
[1744357149426,0.7887,1554.9,1554.6,17.63639803]
[1744357149580,0.7887,1554.9,1554.8,0.27217348]
[1744357149981,0.7887,1554.9,1554.6,17.63639803]
[1744357150219,7.22013,1554.9,1554.7,0.27265316]
[1744357150440,6.43169,1554.8,1554.6,4.77137803]
[1744357150838,12.78169,1554.8,1554.6,4.77137803]
[1744357151029,7.193,1554.7,1554.6,4.77137803]
[1744357151242,11.07175057,1554.7,1554.6,4.77137803]
[1744357152020,7.25372,1554.6,1554.5,4.77137803]
[1744357152228,8.36089506,1554.6,1554.5,4.77137803]
[1744357153998,14.45089506,1554.6,1554.5,4.77137803]
[1744357154200,25.64624563,1554.6,1554.5,8.03e-06]
[1744357154396,32.4995962,1554.6,1554.5,8.03e-06]
[1744357154593,28.64624563,1554.6,1554.5,8.03e-06]
[1744357155237,32.4995962,1554.6,1554.5,8.03e-06]
[1744357155438,7.23557,1554.2,1554.1,6.27610594]
[1744357155608,21.043521,1554.2,1554.1,6.27610594]
[1744357156596,14.609351,1554.2,1554.1,6.27610594]
[1744357156832,21.043521,1554.2,1554.1,6.27610594]
[1744357157117,21.043521,1554.2,1553.8,12.87162]
[1744357157823,27.477941,1554.2,1553.8,6.43581]
[1744357158527,9.1824041,1554.1,1553.8,6.43581]
[1744357158736,15.6172741,1554.1,1553.7,6.43618]
[1744357161046,0.7536,1554.0,1553.7,6.43618]
[1744357161342,7.18869,1554.0,1553.7,6.43618]
[1744357162753,7.18869,1554.0,1553.8,0.28212876]
[1744357163053,8.82579941,1554.0,1553.8,0.28212876]
[1744357163652,1.63710941,1554.0,1553.9,6.43542]
[1744357163947,3.5461941,1554.1,1553.8,6.71794876]
[1744357164154,3.5461941,1554.1,1553.9,0.28164831]
[1744357164552,9.9808041,1554.1,1553.9,0.28164831]
[1744357164744,16.4156141,1554.1,1553.9,0.28164831]
[1744357165249,16.4156141,1554.1,1554.0,0.28116791]
[1744357165563,9.9808041,1554.1,1554.0,0.28116791]
[1744357165876,16.4156241,1554.1,1553.7,12.87232]
[1744357166064,16.4156241,1554.1,1554.0,0.28116791]
[1744357166065,9.9808041,1554.1,1554.0,0.28116791]
[1744357166232,9.9808041,1554.1,1553.7,12.87232]
[1744357166432,9.9808041,1554.1,1554.0,0.28116791]
[1744357166854,9.9808041,1554.1,1553.7,12.87232]
[1744357167061,9.9808041,1554.1,1554.0,0.28116791]
[1744357167234,9.9808041,1554.1,1553.8,6.43582]
[1744357167426,9.9808041,1554.1,1554.0,0.28116791]
[1744357167626,9.9808041,1554.1,1553.9,0.28164831]
[1744357167826,16.4155741,1554.1,1554.0,0.28116791]
[1744357168332,16.4155741,1554.1,1554.0,0.28278883]
[1744357168732,16.4155741,1554.1,1553.7,12.87232]
[1744357168932,16.4155741,1554.1,1554.0,0.28278883]
[1744357169140,16.4155741,1554.1,1553.7,12.87232]
[1744357169321,16.4155741,1554.1,1554.0,0.28278883]
[1744357169522,16.4155741,1554.1,1553.7,12.87232]
[1744357169730,9.9808041,1554.1,1554.0,0.28278883]
[1744357169948,9.9808041,1554.1,1553.7,12.87232]
[1744357170148,9.9808041,1554.1,1554.0,0.28278883]
[1744357170665,9.9808041,1554.1,1553.8,6.43581]
[1744357170938,9.9808041,1554.1,1553.9,0.28326922]
[1744357171188,12.441,1554.2,1553.9,4.94361979]
[1744357171468,68.4316,1554.5,1554.2,7.24104]
[1744357171667,74.86457,1554.5,1554.2,7.24104]
[1744357171856,81.29769,1554.5,1554.3,0.28116434]
[1744357172056,87.75013548,1554.5,1554.1,17.47363057]
[1744357172451,87.75013548,1554.5,1554.2,0.28164454]
[1744357173183,6.43337,1554.4,1554.2,0.28164454]
[1744357173343,12.86696,1554.4,1554.2,0.28164454]
[1744357173541,6.43337,1554.4,1554.3,0.28116434]
[1744357173873,6.43337,1554.4,1554.1,6.43457]
[1744357174273,6.43337,1554.4,1554.2,0.28164454]
[1744357174475,19.31942548,1554.4,1554.2,0.28164454]
[1744357174646,19.31942548,1554.4,1554.0,6.43487]
[1744357174969,6.43381,1554.3,1554.1,0.28212479]
[1744357175273,6.43417,1554.2,1554.1,0.28212479]
[1744357175487,13.33127,1554.2,1554.1,0.28212479]
[1744357175689,6.4348,1554.1,1553.7,17.49747057]
[1744357175977,6.349,1554.0,1553.7,17.49747057]
[1744357176747,6.349,1554.0,1553.8,6.43579]
[1744357177967,6.349,1554.0,1553.9,0.2830855]
[1744357182367,7.1129,1554.0,1553.9,0.2830855]
[1744357184079,14.902655,1554.0,1553.9,0.2830855]
[1744357184392,14.902655,1554.0,1553.6,13.68188]
[1744357184598,14.902655,1554.0,1553.7,6.72016295]
[1744357185502,20.992655,1554.0,1553.7,13.15627295]
[1744357185683,20.992655,1554.0,1553.8,3.85335057]
[1744357185684,12.439,1554.0,1553.8,3.85335057]
[1744357186101,12.439,1554.0,1553.9,0.282982]
[1744357186507,12.439,1554.0,1553.8,3.85335057]
[1744357186707,12.439,1554.0,1553.9,6.43542]
[1744357186885,12.439,1554.0,1553.9,6.71812643]
[1744357188204,6.09,1554.0,1553.9,6.71812643]
[1744357188435,6.09,1554.0,1553.9,7.53002643]
[1744357188581,6.09,1554.0,1553.9,13.0840967]
[1744357190877,19.70134548,1554.4,1554.1,6.43422]
[1744357191080,19.70134548,1554.4,1554.1,12.86858]
[1744357191408,26.09217254,1554.4,1554.2,0.28126552]
[1744357191717,9.04303725,1554.3,1554.0,6.43493]
[1744357192032,9.04303725,1554.3,1554.1,0.28174576]
[1744357192584,9.04303725,1554.3,1554.1,6.71612576]
[1744357192585,2.60921725,1554.3,1554.1,6.71612576]
[1744357192825,19.68236,1554.4,1554.1,13.15065576]
[1744357193326,13.2489,1554.4,1554.1,13.15065576]
[1744357194228,13.2489,1554.4,1554.2,6.43417]
[1744357194394,13.2489,1554.4,1554.3,0.27990118]
[1744357195031,13.2489,1554.4,1554.2,6.43412]
[1744357195230,13.2489,1554.4,1554.3,0.27990118]
[1744357195432,19.70134548,1554.4,1554.3,0.27990118]
[1744357196399,19.70134548,1554.4,1554.1,6.43438]
[1744357196400,19.70134548,1554.4,1554.1,12.86881]
[1744357196601,19.70134548,1554.4,1554.2,0.28038131]
[1744357197026,19.70134548,1554.4,1554.2,6.71450131]
[1744357197722,12.44,1554.4,1554.2,13.14842131]
[1744357198032,12.44,1554.4,1554.3,6.43376]
[1744357198220,12.44,1554.4,1554.3,6.71366118]
[1744357198706,6.35,1554.4,1554.3,11.33771175]
[1744357199411,6.35,1554.4,1554.3,14.33771175]
[1744357200226,12.438,1554.7,1554.5,6.43288]
[1744357200434,6.348,1554.7,1554.6,0.27846113]
[1744357200632,6.348,1554.7,1554.5,6.43285]
[1744357200940,6.348,1554.7,1554.6,0.27846113]
[1744357201106,6.348,1554.7,1554.6,6.71098113]
[1744357201307,6.348,1554.7,1554.6,7.52028113]
[1744357201613,6.348,1554.7,1554.6,0.27846113]
[1744357201943,14.58071839,1554.7,1554.6,0.27846113]
[1744357202321,14.58071839,1554.7,1554.4,6.43319]
[1744357202634,14.58071839,1554.7,1554.5,0.27894108]
[1744357203452,8.14861839,1554.7,1554.5,0.27894108]
[1744357203614,8.14861839,1554.7,1554.5,6.71168108]
[1744357203797,8.14861839,1554.7,1554.5,12.86548]
[1744357204001,8.14861839,1554.7,1554.6,0.27846113]
[1744357204425,6.348,1554.7,1554.6,0.27846113]
[1744357206335,12.7801,1554.7,1554.6,0.27846113]
[1744357206742,12.7801,1554.7,1554.4,6.43334]
[1744357206919,12.7801,1554.7,1554.6,0.27846113]
[1744357207445,12.7801,1554.7,1554.4,12.8665]
[1744357207642,15.390932,1554.7,1554.5,0.27894108]
[1744357208209,6.348,1554.7,1554.6,6.43252]
[1744357208415,6.348,1554.7,1554.6,6.71004996]
[1744357209034,6.347,1555.0,1554.8,6.43161]
[1744357209241,6.347,1555.0,1554.9,0.27609048]
[1744357209946,6.09,1555.1,1554.9,0.27609048]
[1744357210112,0.609,1555.0,1554.9,0.27609048]
[1744357210311,18.09981387,1555.2,1554.9,0.27609048]
[1744357210537,24.53003387,1555.2,1554.9,0.27609048]
[1744357211149,6.43053,1555.1,1554.9,0.27609048]
[1744357212612,10.85168387,1555.2,1555.0,6.4306]
[1744357212814,4.76168387,1555.2,1555.1,6.704847]
[1744357214045,4.76168387,1555.2,1555.1,0.274397]
[1744357214344,6.43049,1555.1,1554.8,0.8014]
[1744357214545,7.21739,1555.1,1554.7,16.71745057]
[1744357214749,7.21739,1555.1,1554.9,0.27517273]
[1744357214951,7.21739,1555.1,1554.8,0.27620309]
[1744357215251,7.21739,1555.1,1554.9,0.2755398]
[1744357215451,9.23793923,1555.1,1554.9,0.2755398]
[1744357215633,15.66870923,1555.1,1554.7,12.86403]
[1744357215834,6.43093,1555.0,1554.8,0.27574421]
[1744357216332,9.23793923,1555.1,1554.8,0.27574421]
[1744357217117,9.23793923,1555.1,1554.8,6.70721421]
[1744357217758,15.32793923,1555.1,1554.8,6.70721421]
[1744357217958,21.75857923,1555.1,1554.8,6.70721421]
[1744357218474,21.75857923,1555.1,1554.8,0.27574421]
[1744357218665,6.43089,1555.0,1554.8,0.27574421]
[1744357219766,19.73821,1555.1,1554.8,0.27574421]
[1744357219971,6.09,1555.1,1554.9,6.431]
[1744357220332,6.09,1555.1,1555.0,0.27368389]
[1744357220862,6.09,1555.1,1555.0,0.2739591]
[1744357221026,12.52045,1555.1,1554.8,11.11638057]
[1744357221227,12.52045,1555.1,1554.9,0.2744387]
[1744357221663,14.97108039,1555.1,1554.9,0.2744387]
[1744357221866,6.43086,1555.0,1554.7,6.91922335]
[1744357222064,6.43086,1555.0,1554.8,0.27501011]
[1744357222646,25.29616,1555.1,1554.8,0.27501011]
[1744357224374,6.43098,1555.0,1554.8,0.27501011]
[1744357224546,7.074378,1554.9,1554.8,0.27501011]
[1744357224862,12.86528,1554.6,1554.3,1.0247]
[1744357225063,6.43335,1554.4,1554.3,0.2744]
[1744357225380,13.34695,1554.4,1554.3,0.2744]
[1744357225530,15.959257,1554.4,1554.3,0.2744]
[1744357227771,19.78640757,1554.4,1554.3,0.2744]
[1744357227976,15.933057,1554.4,1554.3,0.2744]
[1744357229249,19.78640757,1554.4,1554.3,0.2744]
[1744357229757,20.33640757,1554.4,1554.3,0.2744]
[1744357230688,15.933057,1554.4,1554.3,0.55157781]
[1744357230914,13.32075,1554.4,1554.3,0.2744]
[1744357231257,12.52335,1554.4,1554.3,0.71670289]
[1744357241260,6.43335,1554.4,1554.3,0.71670289]
[1744357241589,6.43335,1554.4,1554.3,0.2744]
[1744357241805,6.43335,1554.4,1554.3,0.71925431]
[1744357242097,9.68366,1554.4,1554.3,0.71925431]
[1744357244995,10.49286,1554.4,1554.3,0.71925431]
[1744357245196,10.49286,1554.4,1554.3,0.2744]
[1744357245902,9.68366,1554.4,1554.3,0.2744]
[1744357246201,6.43335,1554.4,1554.3,0.2744]
[1744357246678,6.43335,1554.4,1554.3,0.71869129]
[1744357247163,12.52335,1554.4,1554.3,0.71869129]
[1744357248192,12.52335,1554.4,1554.3,1.48409129]
[1744357248364,12.52335,1554.4,1554.3,0.71869129]
[1744357249099,15.053297,1554.4,1554.3,0.71869129]
[1744357253317,15.850997,1554.4,1554.3,0.71869129]
[1744357253619,15.850997,1554.4,1554.3,0.2744]
[1744357254120,15.053297,1554.4,1554.3,0.2744]
[1744357254326,6.09,1554.4,1554.3,0.2744]
[1744357254524,6.09,1554.4,1554.3,0.71734342]
[1744357254681,6.09,1554.4,1554.3,0.2744]
[1744357255027,12.52335,1554.4,1554.3,0.2744]
[1744357255321,12.52335,1554.4,1554.3,0.71800005]
[1744357255528,12.52335,1554.4,1554.3,0.2744]
[1744357255689,12.52335,1554.4,1554.3,0.71818768]
[1744357255895,12.52335,1554.4,1554.3,0.2744]
[1744357256095,12.52335,1554.4,1554.3,0.71818768]
[1744357257284,15.053297,1554.4,1554.3,0.71818768]
[1744357259905,15.815597,1554.4,1554.3,0.71818768]
[1744357260714,15.053297,1554.4,1554.3,0.71818768]
[1744357260908,12.52335,1554.4,1554.3,0.2744]
[1744357261730,12.52335,1554.4,1554.3,0.71846914]
[1744357261731,6.09,1554.4,1554.3,0.71846914]
[1744357261892,6.09,1554.4,1554.3,0.2744]
[1744357262093,6.09,1554.4,1554.3,0.71846914]
[1744357262436,12.52335,1554.4,1554.3,0.71846914]
[1744357262738,15.053295,1554.4,1554.3,0.71846914]
[1744357262888,12.52335,1554.4,1554.3,0.71846914]
[1744357267502,13.33155,1554.4,1554.3,0.2744]
[1744357270836,6.43614,1553.8,1553.6,0.7986]
[1744357271143,12.87226,1553.8,1553.7,0.44695491]
[1744357271306,6.43612,1553.8,1553.7,0.44695491]
[1744357271506,12.434,1553.9,1553.7,0.44695491]
[1744357272803,18.86945,1553.9,1553.7,0.44695491]
[1744357273523,12.434,1553.9,1553.7,0.44695491]
[1744357274535,12.434,1553.9,1553.8,0.8003]
[1744357274730,18.86942,1553.9,1553.8,1.24751479]
[1744357275039,21.39987,1553.9,1553.8,0.44721479]
[1744357276209,18.86942,1553.9,1553.8,0.44721479]
[1744357276410,12.434,1553.9,1553.8,0.44721479]
[1744357276610,12.434,1553.9,1553.8,7.66434479]
[1744357277035,12.434,1553.9,1553.8,1.22851479]
[1744357279041,12.434,1553.9,1553.8,0.44721479]
[1744357279247,20.756323,1553.9,1553.8,0.44721479]
[1744357279550,6.43595,1553.8,1553.6,0.8073]
[1744357280066,6.43678,1553.6,1553.2,18.74501752]
[1744357280269,6.43678,1553.6,1553.3,6.43787]
[1744357280448,12.52627,1553.7,1553.3,6.43787]
[1744357280449,6.09,1553.7,1553.4,7.22956]
[1744357280614,6.09,1553.7,1553.4,13.66691]
[1744357280819,12.52634,1553.7,1553.4,7.22956]
[1744357281258,8.066054,1553.7,1553.4,0.7923]
[1744357281428,6.43701,1553.6,1553.4,0.7923]
[1744357281827,12.52633,1553.7,1553.4,0.7923]
[1744357282027,12.52633,1553.7,1553.4,7.2296]
[1744357282252,6.09,1553.7,1553.5,6.43698]
[1744357282455,6.09,1553.7,1553.6,7.20766]
[1744357282621,20.756333,1553.9,1553.6,7.65713355]
[1744357283834,14.320903,1553.9,1553.6,14.09364355]
[1744357284035,12.434,1553.9,1553.6,14.09364355]
[1744357284436,12.434,1553.9,1553.6,7.65698355]
[1744357284437,18.86945,1553.9,1553.6,7.65698355]
[1744357285865,12.434,1553.9,1553.8,7.20423]
[1744357286074,12.434,1553.9,1553.8,1.21642205]
[1744357286565,12.434,1553.9,1553.8,0.44802205]
[1744357287170,27.192049,1553.9,1553.6,0.7528]
[1744357287373,20.756329,1553.9,1553.8,0.44839751]
[1744357287537,20.756329,1553.9,1553.7,0.44888856]
[1744357287866,14.320909,1553.9,1553.7,0.44888856]
[1744357288032,12.434,1553.9,1553.7,6.88496856]
[1744357290273,12.434,1553.9,1553.7,13.32105856]
[1744357291471,6.344,1553.9,1553.8,11.06708057]
[1744357291637,12.434,1554.2,1553.9,6.43524]
[1744357291839,19.511627,1554.2,1554.0,0.44601236]
[1744357292888,12.434,1554.2,1554.0,6.88100236]
[1744357293040,12.434,1554.2,1554.0,14.08794236]
[1744357293235,12.434,1554.2,1554.0,7.65295236]
[1744357297402,12.434,1554.2,1554.0,14.08782236]
[1744357297596,12.434,1554.2,1554.0,7.65295236]
[1744357298697,12.434,1554.2,1554.0,14.08782236]
[1744357298903,12.434,1554.2,1554.0,7.65295236]
[1744357299473,12.434,1554.2,1554.0,14.08782236]
[1744357300306,12.434,1554.2,1554.1,6.43459]
[1744357300506,12.434,1554.2,1554.1,6.87959558]